Department Family,Entity,Date,Expense Type,Expense area,Supplier,Transaction Number,Amount in Sterling �s incl VAT ,Supplier VAT Registration number
NHS,Glos Hospitals NHS Foundation Trust,04/10/2022,Finished processed goods,Inventories,Bayer,000374-361,"49,272.62", 
NHS,Glos Hospitals NHS Foundation Trust,04/10/2022,Finished processed goods,Inventories,Bristol Myers Squibb Pharmaceuticals Limited,000374-363,"88,666.74", 
NHS,Glos Hospitals NHS Foundation Trust,04/10/2022,Finished processed goods,Inventories,Roche Products Limited,000374-367,"34,446.96", 
NHS,Glos Hospitals NHS Foundation Trust,04/10/2022,Finished processed goods,Inventories,Roche Products Limited,000374-368,"54,990.00", 
NHS,Glos Hospitals NHS Foundation Trust,04/10/2022,Finished processed goods,Inventories,Roche Products Limited,000374-369,"67,956.00", 
NHS,Glos Hospitals NHS Foundation Trust,04/10/2022,Finished processed goods,Inventories,Roche Products Limited,000374-370,"54,990.00", 
NHS,Glos Hospitals NHS Foundation Trust,04/10/2022,Finished processed goods,Inventories,Roche Products Limited,000374-371,"36,863.76", 
NHS,Glos Hospitals NHS Foundation Trust,04/10/2022,Finished processed goods,Inventories,Alloga UK Limited,000374-501,"45,000.00", 
NHS,Glos Hospitals NHS Foundation Trust,04/10/2022,Finished processed goods,Inventories,Alloga UK Limited,000374-511,"46,800.00", 
NHS,Glos Hospitals NHS Foundation Trust,04/10/2022,Finished processed goods,Inventories,Janssen Cilag Limited,000374-535,"88,231.68", 
NHS,Glos Hospitals NHS Foundation Trust,11/10/2022,Finished processed goods,Inventories,Bayer,000375-36,"45,622.80", 
NHS,Glos Hospitals NHS Foundation Trust,11/10/2022,Finished processed goods,Inventories,Alloga UK Limited,000375-363,"27,120.00", 
NHS,Glos Hospitals NHS Foundation Trust,11/10/2022,Finished processed goods,Inventories,Qualasept Ltd t/a Bath ASU,000375-431,"76,278.24", 
NHS,Glos Hospitals NHS Foundation Trust,11/10/2022,Finished processed goods,Inventories,Alliance Healthcare,000378-105,"68,169.60", 
NHS,Glos Hospitals NHS Foundation Trust,11/10/2022,Finished processed goods,Inventories,Alloga UK Limited,000378-205,"27,120.00", 
NHS,Glos Hospitals NHS Foundation Trust,11/10/2022,Finished processed goods,Inventories,Alloga UK Limited,000378-208,"45,000.00", 
NHS,Glos Hospitals NHS Foundation Trust,11/10/2022,Finished processed goods,Inventories,Alloga UK Limited,000378-213,"27,120.00", 
NHS,Glos Hospitals NHS Foundation Trust,11/10/2022,Finished processed goods,Inventories,Qualasept Ltd t/a Bath ASU,000378-231,"71,466.24", 
NHS,Glos Hospitals NHS Foundation Trust,11/10/2022,Finished processed goods,Inventories,Bristol Myers Squibb Pharmaceuticals Limited,000378-70,"74,333.70", 
NHS,Glos Hospitals NHS Foundation Trust,11/10/2022,Finished processed goods,Inventories,Roche Products Limited,000378-73,"73,320.00", 
NHS,Glos Hospitals NHS Foundation Trust,11/10/2022,Finished processed goods,Inventories,Roche Products Limited,000378-74,"73,320.00", 
NHS,Glos Hospitals NHS Foundation Trust,18/10/2022,Finished processed goods,Inventories,Bayer,000382-3,"50,185.08", 
NHS,Glos Hospitals NHS Foundation Trust,18/10/2022,Finished processed goods,Inventories,Bayer,000382-4,"50,185.08", 
NHS,Glos Hospitals NHS Foundation Trust,18/10/2022,Finished processed goods,Inventories,Bayer,000382-6,"50,185.08", 
NHS,Glos Hospitals NHS Foundation Trust,18/10/2022,Finished processed goods,Inventories,Alliance Healthcare,000383-257,"67,459.80", 
NHS,Glos Hospitals NHS Foundation Trust,18/10/2022,Finished processed goods,Inventories,Janssen Cilag Limited,000383-288,"83,462.40", 
NHS,Glos Hospitals NHS Foundation Trust,18/10/2022,Finished processed goods,Inventories,Bayer,000383-78,"49,272.62", 
NHS,Glos Hospitals NHS Foundation Trust,18/10/2022,Finished processed goods,Inventories,Bristol Myers Squibb Pharmaceuticals Limited,000383-79,"43,002.30", 
NHS,Glos Hospitals NHS Foundation Trust,25/10/2022,Finished processed goods,Inventories,Octapharma Limited,000386-127,"38,400.00", 
NHS,Glos Hospitals NHS Foundation Trust,25/10/2022,Finished processed goods,Inventories,CSL Behring UK Limited,000386-21,"46,771.20", 
NHS,Glos Hospitals NHS Foundation Trust,25/10/2022,Finished processed goods,Inventories,Alloga UK Limited,000386-54,"29,160.00", 
NHS,Glos Hospitals NHS Foundation Trust,25/10/2022,Finished processed goods,Inventories,Aah Pharmaceuticals Limited,000388-19,"31,549.68", 
NHS,Glos Hospitals NHS Foundation Trust,25/10/2022,Computer Software / License  Fees,Glos Community Paed Admin,VoicePower Limited,917760,"43,272.00", 
NHS,Glos Hospitals NHS Foundation Trust,04/10/2022,Purchase Computers/Systems,Capital Project Control,XMA Limited,924708,"77,697.60", 
NHS,Glos Hospitals NHS Foundation Trust,28/10/2022,Commercial Sector,Main Theatre - Non Pay only,Genmed.me Limited,925002,"-594,088.15", 
NHS,Glos Hospitals NHS Foundation Trust,28/10/2022,Commercial Sector,Main Theatre - Non Pay only,Genmed.me Limited,925003,"-198,870.04", 
NHS,Glos Hospitals NHS Foundation Trust,18/10/2022,Purchase Computers/Systems,Capital Project Control,XMA Limited,926040,"54,386.98", 
NHS,Glos Hospitals NHS Foundation Trust,25/10/2022,Medical & Surgical Equipment Maintenance Contracts,Endoscopy CGH,Cantel (UK) Limited,926351,"35,170.61", 
NHS,Glos Hospitals NHS Foundation Trust,04/10/2022,External Contracts : Other,Clinical Coders,Monmouth Partners Limited,926866,"27,900.00", 
NHS,Glos Hospitals NHS Foundation Trust,18/10/2022,Contract : Other External,GHP Contract,Gloucester Healthcare Partnership Limited,927011,"27,774.06", 
NHS,Glos Hospitals NHS Foundation Trust,18/10/2022,Contract : Other External,GHP Contract,Gloucester Healthcare Partnership Limited,927012,"645,707.41", 
NHS,Glos Hospitals NHS Foundation Trust,25/10/2022,Purchase Computers/Systems,Capital Project Control,Insight Direct (UK) Limited,928473,"-53,184.00", 
NHS,Glos Hospitals NHS Foundation Trust,25/10/2022,Training Expenses,Medical Appraisals,Insight Direct (UK) Limited,928928,"48,000.00", 
NHS,Glos Hospitals NHS Foundation Trust,11/10/2022,Patients Appliances : Repairs,Patient Appliances,Opcare Limited,929149,"46,079.12", 
NHS,Glos Hospitals NHS Foundation Trust,18/10/2022,Contract : Other External,UC & Dividend,NHS Gloucestershire Managed Services,929513,"5,841,775.56", 
NHS,Glos Hospitals NHS Foundation Trust,25/10/2022,Non - Healthcare - NHS Trusts,Hereford Clinic Rental,HA95059 Wye Valley NHS Trust,929585,"155,586.00", 
NHS,Glos Hospitals NHS Foundation Trust,04/10/2022,Drugs,Insulin Pump Therapy,Medtronic Limited,929653,"51,600.00", 
NHS,Glos Hospitals NHS Foundation Trust,04/10/2022,External Contracts : Other,Radiography Consultants,Everlight Radiology,929696,"92,177.75", 
NHS,Glos Hospitals NHS Foundation Trust,04/10/2022,Computer Network Costs,Network Infrastructure,BT Global Services,929879,"45,316.62", 
NHS,Glos Hospitals NHS Foundation Trust,04/10/2022,Purchase Computers/Systems,Capital Project Control,XMA Limited,929905,"28,193.40", 
NHS,Glos Hospitals NHS Foundation Trust,25/10/2022,Non - Healthcare - NHS Trusts,Hereford Clinic Rental,HA95059 Wye Valley NHS Trust,929923,"155,586.00", 
NHS,Glos Hospitals NHS Foundation Trust,25/10/2022,Non - Healthcare - NHS Trusts,Hereford Clinic Rental,HA95059 Wye Valley NHS Trust,929927,"155,586.00", 
NHS,Glos Hospitals NHS Foundation Trust,04/10/2022,Rates,Rates - GRH,Gloucester City Council,929947,"209,920.00", 
NHS,Glos Hospitals NHS Foundation Trust,04/10/2022,Rates,Rates - CGH,Cheltenham Borough Council,929953,"90,624.00", 
NHS,Glos Hospitals NHS Foundation Trust,04/10/2022,Allocate,Payables - Manual,ID Medical Group Limited,929962,"30,552.00", 
NHS,Glos Hospitals NHS Foundation Trust,18/10/2022,Purchase Computers/Systems,Capital Project Control,BOXXE Limited,930042,"91,928.40", 
NHS,Glos Hospitals NHS Foundation Trust,25/10/2022,Medical & Surgical Equipment Maintenance Contracts,Endoscopy CGH,Cantel (UK) Limited,930086,"-35,170.61", 
NHS,Glos Hospitals NHS Foundation Trust,04/10/2022,Purchase Computers/Systems,Capital Project Control,XMA Limited,930115,"41,323.50", 
NHS,Glos Hospitals NHS Foundation Trust,04/10/2022,Purchase Computers/Systems,Capital Project Control,XMA Limited,930116,"27,293.40", 
NHS,Glos Hospitals NHS Foundation Trust,04/10/2022,X-Ray Equipment : Maintenance,Radiography,Apleona PPP Limited,930445,"51,382.80", 
NHS,Glos Hospitals NHS Foundation Trust,04/10/2022,Sal Sacrifice Car Scheme,Pay Deductions,Tusker Direct,930927,"54,886.56", 
NHS,Glos Hospitals NHS Foundation Trust,11/10/2022,Prescribing Control,Payables - Manual,HA79125 NHSBSA,931225,"95,921.43", 
NHS,Glos Hospitals NHS Foundation Trust,07/10/2022,Training Expenses,Director of Nursing,Florence Nightingale Foundation-Leadership,931376,"37,528.00", 
NHS,Glos Hospitals NHS Foundation Trust,11/10/2022,Colour Connection,Payables - Manual,Colour Connection,931564,"42,105.56", 
NHS,Glos Hospitals NHS Foundation Trust,11/10/2022,Other Insurance Costs,Trustwide Finance,Willis Limited,931622,"198,785.53", 
NHS,Glos Hospitals NHS Foundation Trust,18/10/2022,Contract : Other External,UC & Dividend,NHS Gloucestershire Managed Services,931683,"-66,099.60", 
NHS,Glos Hospitals NHS Foundation Trust,18/10/2022,External Contracts : Other,Radiography,Cobalt Health,931703,"71,842.00", 
NHS,Glos Hospitals NHS Foundation Trust,18/10/2022,Rent,Radiography,Cobalt Health,931704,"26,809.55", 
NHS,Glos Hospitals NHS Foundation Trust,18/10/2022,Contract : Other External,UC & Dividend,NHS Gloucestershire Managed Services,931763,"478,116.97", 
NHS,Glos Hospitals NHS Foundation Trust,18/10/2022,Contract : Other External,UC & Dividend,NHS Gloucestershire Managed Services,931764,"-478,116.97", 
NHS,Glos Hospitals NHS Foundation Trust,11/10/2022,Computer Software / License  Fees,Radiography,Philips UK and Ireland,931766,"287,830.50", 
NHS,Glos Hospitals NHS Foundation Trust,11/10/2022,X-Ray Equipment : Maintenance,Breast Screening - CGH,Supply Chain Coordination Ltd - Maint. (201),931846,"42,136.80", 
NHS,Glos Hospitals NHS Foundation Trust,18/10/2022,Contractual Clinical Services,Cardiology Laboratory,AGITO Medical A/S,932029,"30,580.00", 
NHS,Glos Hospitals NHS Foundation Trust,18/10/2022,Allocate,Payables - Manual,ID Medical Group Limited,932155,"30,552.00", 
NHS,Glos Hospitals NHS Foundation Trust,18/10/2022,Computer Maintenance,Radiotherapy - Radiography,Varian Medical Systems UK Limited,932229,"163,111.20", 
NHS,Glos Hospitals NHS Foundation Trust,25/10/2022,Drugs - Passthrough Expenditure,Hereford Clinic Rental,HA95059 Wye Valley NHS Trust,932232,"470,553.48", 
NHS,Glos Hospitals NHS Foundation Trust,18/10/2022,NHS Logistics control,Payables - Manual,Supply Chain Coordination Ltd - Consumables,932286,"62,470.86", 
NHS,Glos Hospitals NHS Foundation Trust,18/10/2022,Building - External Contracts,Capital Project Control,Camworth Limited,932298,"59,860.27", 
NHS,Glos Hospitals NHS Foundation Trust,18/10/2022,NHS Logistics control,Payables - Manual,Supply Chain Coordination Ltd - Consumables,932304,"25,527.05", 
NHS,Glos Hospitals NHS Foundation Trust,18/10/2022,Building - External Contracts,Capital Project Control,Kier Infrastructure & Overseas Limited,932383,"1,890,950.51", 
NHS,Glos Hospitals NHS Foundation Trust,18/10/2022,Data Lines,Network Infrastructure,Updata Infrastructure UK Limited,932385,"42,814.67", 
NHS,Glos Hospitals NHS Foundation Trust,18/10/2022,Data Lines,Network Infrastructure,Updata Infrastructure UK Limited,932388,"48,961.34", 
NHS,Glos Hospitals NHS Foundation Trust,25/10/2022,Contractual Clinical Services,Renal Dialysis,B Braun Avitum UK Limited,932630,"181,860.14", 
NHS,Glos Hospitals NHS Foundation Trust,18/10/2022,NHS Logistics control,Payables - Manual,Supply Chain Coordination Ltd - Consumables,932656,"139,839.43", 
NHS,Glos Hospitals NHS Foundation Trust,28/10/2022,Commercial Sector,Main Theatre - Non Pay only,Genmed.me Limited,932659,"507,349.37", 
NHS,Glos Hospitals NHS Foundation Trust,18/10/2022,Computer Software / License  Fees,Smartcare,InterSystems,932675,"59,872.36", 
NHS,Glos Hospitals NHS Foundation Trust,25/10/2022,Contractual Clinical Services,Renal Dialysis,B Braun Avitum UK Limited,932874,"133,155.00", 
NHS,Glos Hospitals NHS Foundation Trust,25/10/2022,Computer Maintenance,IT Contracts Shared Service,Insight Direct (UK) Limited,932888,"42,000.00", 
NHS,Glos Hospitals NHS Foundation Trust,18/10/2022,NHS Logistics control,Payables - Manual,Supply Chain Coordination Ltd - Consumables,932941,"36,196.56", 
NHS,Glos Hospitals NHS Foundation Trust,18/10/2022,Fresh Blood & Plasma Products,Consultants - Clinical Haematology,HA73961 NHS Blood & Transplant,932945,"26,041.74", 
NHS,Glos Hospitals NHS Foundation Trust,25/10/2022,Fresh Blood & Plasma Products,Blood Products,HA73961 NHS Blood & Transplant,933186,"99,429.08", 
NHS,Glos Hospitals NHS Foundation Trust,25/10/2022,Fresh Blood & Plasma Products,Blood Products,HA73961 NHS Blood & Transplant,933187,"45,402.19", 
NHS,Glos Hospitals NHS Foundation Trust,25/10/2022,Other Transport Costs,Patient Transport Services GHX,E-Zec Medical Transport Services Ltd,933370,"30,531.05", 
NHS,Glos Hospitals NHS Foundation Trust,25/10/2022,Purchase Computers/Systems,Capital Project Control,XMA Limited,933557,"28,193.40", 
NHS,Glos Hospitals NHS Foundation Trust,25/10/2022,Advertising & Staff Recruitment,Service Delivery,Remedium Partners Limited,933559,"31,200.00", 
NHS,Glos Hospitals NHS Foundation Trust,25/10/2022,Computer Network Costs,Network Infrastructure,BT Global Services,933588,"70,623.79", 
NHS,Glos Hospitals NHS Foundation Trust,21/10/2022,NESTEE,Tax & NI & Superannuation,EFT Receipts Ac,933603,"31,324.06", 
NHS,Glos Hospitals NHS Foundation Trust,21/10/2022,Barclay Card,Payables - Manual,Barclaycard Commercial,933605,"117,213.07", 
NHS,Glos Hospitals NHS Foundation Trust,21/10/2022,Clinical Negligence,Trustwide Finance,NHS Resolution,933628,"1,937,434.70", 
NHS,Glos Hospitals NHS Foundation Trust,25/10/2022,Contract : Other External,GHP Contract,Gloucester Healthcare Partnership Limited,933741,"645,707.41", 
NHS,Glos Hospitals NHS Foundation Trust,25/10/2022,Contract : Other External,GHP Contract,Gloucester Healthcare Partnership Limited,933742,"27,774.06", 
NHS,Glos Hospitals NHS Foundation Trust,28/10/2022,Pay Reserves,Contingency Reserve,HM Revenue and Customs (HMRC) Account,933800,"101,129.31", 
NHS,Glos Hospitals NHS Foundation Trust,25/10/2022,NHS Logistics control,Payables - Manual,Supply Chain Coordination Ltd - Consumables,933983,"35,383.68", 
NHS,Glos Hospitals NHS Foundation Trust,28/10/2022,Commercial Sector,Theatre Admin GRH,Genmed.me Limited,934143,"1,568,296.55", 
NHS,Glos Hospitals NHS Foundation Trust,28/10/2022,Vendor Cr Bals Clearance,Income Unallocated,Abbott Laboratories Limited,935006,"70,077.52", 
